bitfinex/quotes_BTCUSD_20250328
["timestamp","ask_amount","ask_price","bid_price","bid_amount"]
[1743177617359,1.6412296,84249.0,84248.0,99.47296628]
[1743177617571,1.6412296,84249.0,84248.0,99.33906579]
[1743177617746,1.6362296,84249.0,84248.0,99.33906579]
[1743177618349,1.6412296,84249.0,84248.0,99.33906579]
[1743177618723,1.6362296,84249.0,84248.0,99.33906579]
[1743177619057,1.6412296,84249.0,84248.0,99.33906579]
[1743177619411,1.4973096,84249.0,84248.0,99.33906579]
[1743177619607,1.6411496,84249.0,84248.0,99.35360664]
[1743177619843,1.6361496,84249.0,84248.0,99.35360664]
[1743177620032,1.6411496,84249.0,84248.0,99.35360664]
[1743177620376,1.6361496,84249.0,84248.0,99.35360664]
[1743177620873,1.1973096,84249.0,84248.0,99.77150664]
[1743177621356,1.3409896,84249.0,84248.0,99.77210664]
[1743177621708,1.1973096,84249.0,84248.0,99.77210664]
[1743177621906,1.3359496,84249.0,84248.0,99.77210664]
[1743177622127,1.1973096,84249.0,84248.0,99.77210664]
[1743177622356,1.3409096,84249.0,84248.0,99.77210664]
[1743177622562,1.1973096,84249.0,84248.0,99.77210664]
[1743177622764,1.3409096,84249.0,84248.0,99.77210664]
[1743177623073,1.3359096,84249.0,84248.0,99.77210664]
[1743177623206,1.3409096,84249.0,84248.0,99.77210664]
[1743177623406,1.3408296,84249.0,84248.0,99.77210664]
[1743177623607,1.3407896,84249.0,84248.0,99.77210664]
[1743177624015,1.3407896,84249.0,84248.0,99.89730664]
[1743177625382,1.3405896,84249.0,84248.0,99.89730664]
[1743177625596,0.1536178,84249.0,84248.0,99.89730664]
[1743177626603,0.1486178,84249.0,84248.0,99.89730664]
[1743177627502,0.1536178,84249.0,84248.0,99.89730664]
[1743177628548,0.0103378,84249.0,84248.0,99.89730664]
[1743177628756,0.0003378,84256.0,84255.0,0.13974085]
[1743177628962,0.1432178,84256.0,84255.0,0.3111015]
[1743177629168,0.1432178,84256.0,84255.0,0.3087288]
[1743177629365,0.1432178,84256.0,84255.0,0.25399849]
[1743177630077,0.1482178,84256.0,84255.0,0.25399849]
[1743177630242,0.1482178,84256.0,84255.0,0.13974085]
[1743177630476,0.1482178,84256.0,84255.0,0.1252]
[1743177631168,0.1532178,84256.0,84255.0,0.13974085]
[1743177632596,0.1532178,84256.0,84255.0,0.54730305]
[1743177632787,0.1527378,84256.0,84255.0,0.54730305]
[1743177633353,0.1526978,84256.0,84255.0,0.54730305]
[1743177633578,0.1526978,84256.0,84255.0,0.60203336]
[1743177633987,0.1526978,84256.0,84255.0,0.54730305]
[1743177635202,0.1525778,84256.0,84255.0,0.4075622]
[1743177635882,0.1525778,84256.0,84255.0,0.42210305]
[1743177636711,0.1525778,84256.0,84255.0,0.4075622]
[1743177637292,0.1525778,84256.0,84255.0,0.42210305]
[1743177637648,0.1475778,84256.0,84255.0,0.42210305]
[1743177638031,0.1524578,84256.0,84255.0,0.42210305]
[1743177639484,0.0103378,84256.0,84255.0,0.42210305]
[1743177639719,0.1522978,84256.0,84255.0,0.42210305]
[1743177640064,0.0103378,84256.0,84255.0,0.42210305]
[1743177640286,0.17099861,84256.0,84255.0,0.42210305]
[1743177641544,0.17087861,84256.0,84255.0,0.54730305]
[1743177641742,0.17087861,84256.0,84255.0,0.42210305]
[1743177642477,0.16720083,84256.0,84255.0,0.42210305]
[1743177643434,0.16712083,84256.0,84255.0,0.42210305]
[1743177643614,0.16581323,84256.0,84255.0,0.42210305]
[1743177643829,0.16581323,84256.0,84255.0,0.4455318]
[1743177643996,0.16573323,84256.0,84255.0,0.42210305]
[1743177644193,0.14711242,84256.0,84255.0,0.42210305]
[1743177645000,0.14187558,84256.0,84255.0,0.42210305]
[1743177645940,0.00011558,84256.0,84255.0,0.42210305]
[1743177646141,0.14167558,84256.0,84255.0,0.60265025]
[1743177647213,0.14167558,84256.0,84255.0,0.54790305]
[1743177647453,0.14156,84256.0,84255.0,0.54790305]
[1743177647732,0.14656,84256.0,84255.0,0.54730305]
[1743177647922,0.1468978,84256.0,84255.0,0.54730305]
[1743177648370,0.1470578,84256.0,84255.0,0.54730305]
[1743177648719,0.1520578,84256.0,84255.0,0.54830305]
[1743177648923,0.1520578,84256.0,84255.0,0.59415603]
[1743177649126,0.1520578,84256.0,84255.0,0.54830305]
[1743177650380,0.14763402,84256.0,84255.0,0.54830305]
[1743177650633,0.14763402,84256.0,84255.0,0.66256069]
[1743177650838,0.00044158,84266.0,84260.0,0.1252]
[1743177650983,0.14168,84265.0,84262.0,0.1252]
[1743177651156,0.14168,84265.0,84264.0,0.13974085]
[1743177652997,0.14168,84265.0,84264.0,0.13474085]
[1743177653604,0.14668,84265.0,84264.0,0.13574085]
[1743177654626,0.14688,84265.0,84264.0,0.13574085]
[1743177656049,0.14672,84265.0,84264.0,0.53738903]
[1743177658004,0.14672,84265.0,84264.0,0.60374819]
[1743177658379,0.14672,84265.0,84264.0,0.53738903]
[1743177658786,0.14672,84265.0,84264.0,0.41718903]
[1743177660313,0.1470578,84265.0,84264.0,0.41718903]
[1743177660518,0.1957578,84265.0,84264.0,0.41718903]
[1743177661327,0.2752578,84265.0,84264.0,0.41718903]
[1743177661742,0.2752578,84265.0,84264.0,0.40264818]
[1743177663382,0.2702578,84265.0,84264.0,0.40164818]
[1743177663781,0.2712578,84265.0,84264.0,0.40164818]
[1743177664587,1.4801588,84265.0,84264.0,0.40164818]
[1743177664785,1.1575568,84265.0,84264.0,0.40164818]
[1743177665110,0.7811278,84265.0,84264.0,0.40164818]
[1743177665331,1.6199728,84265.0,84264.0,0.40164818]
[1743177665740,1.6189728,84265.0,84264.0,0.40164818]
[1743177666177,1.6279728,84265.0,84264.0,0.40164818]
[1743177666311,0.3,84264.0,84255.0,0.0001689]
[1743177666541,0.3751,84259.0,84255.0,0.0001689]
[1743177666740,1.105362,84258.0,84255.0,0.0001689]
[1743177667092,0.4248,84256.0,84255.0,0.0001689]
[1743177667513,2.288385,84256.0,84255.0,0.0001689]
[1743177667830,1.769991,84256.0,84255.0,0.0001689]
[1743177668043,1.343326,84256.0,84255.0,0.0001689]
[1743177668437,0.3,84255.0,84248.0,99.33906579]
[1743177668688,0.3,84253.0,84248.0,99.33906579]
[1743177668919,0.4248,84250.0,84248.0,99.33906579]
[1743177669055,3.4105518,84250.0,84248.0,99.33906579]
[1743177669259,3.4119758,84250.0,84248.0,99.33906579]
[1743177669919,2.5668348,84250.0,84248.0,99.33906579]
[1743177670384,2.6668348,84250.0,84248.0,99.33906579]
[1743177670788,2.5112238,84250.0,84248.0,99.33906579]
[1743177671042,2.2078988,84250.0,84248.0,99.33906579]
[1743177671193,2.3523788,84250.0,84248.0,99.33906579]
[1743177671829,2.37100141,84250.0,84248.0,99.33906579]
[1743177672033,2.37600141,84250.0,84248.0,99.33906579]
[1743177672530,2.38100141,84250.0,84248.0,99.33906579]
[1743177673159,0.4498,84249.0,84248.0,99.26113469]
[1743177673362,5.4498,84249.0,84248.0,99.26113469]
[1743177673559,5.28658,84249.0,84248.0,99.26113469]
[1743177673762,3.323599,84249.0,84248.0,99.26113469]
[1743177674583,3.323599,84249.0,84248.0,99.21113469]
[1743177674950,3.323599,84249.0,84248.0,98.82683469]
[1743177674951,3.38965402,84249.0,84248.0,98.82683469]
[1743177675155,3.42535702,84249.0,84248.0,98.77683469]
[1743177675351,3.37685702,84249.0,84248.0,98.64893469]
[1743177675607,3.33625702,84249.0,84248.0,98.57083469]
[1743177675769,3.33125702,84249.0,84248.0,98.57083469]
[1743177676103,3.34125702,84249.0,84248.0,98.57083469]
[1743177676438,3.50080441,84249.0,84248.0,98.57083469]
[1743177676638,3.34988441,84249.0,84248.0,98.57083469]
[1743177676858,0.62200541,84249.0,84248.0,98.57083469]
[1743177677057,4.39462041,84249.0,84248.0,98.57083469]
[1743177677915,4.39962041,84249.0,84248.0,98.57083469]
[1743177678121,4.40462041,84249.0,84248.0,98.57083469]
[1743177678690,4.87862041,84249.0,84248.0,98.57083469]
[1743177679085,4.87862041,84249.0,84248.0,98.5343984]
[1743177681529,4.40462041,84249.0,84248.0,98.5343984]
[1743177683337,4.25870041,84249.0,84248.0,98.5343984]
[1743177683543,4.40442041,84249.0,84248.0,98.5343984]
[1743177683771,5.11998041,84249.0,84248.0,98.5343984]
[1743177684125,5.12031821,84249.0,84248.0,98.5343984]
[1743177684458,6.34770321,84249.0,84248.0,98.5343984]
[1743177684667,6.18770321,84249.0,84248.0,98.5343984]
[1743177684845,6.19698321,84249.0,84248.0,98.5343984]
[1743177685048,6.82150321,84249.0,84248.0,98.5343984]
[1743177685513,6.78580321,84249.0,84248.0,98.5343984]
[1743177685717,6.78572321,84249.0,84248.0,98.5343984]
[1743177685918,6.79072321,84249.0,84248.0,98.5343984]
[1743177686285,6.78572321,84249.0,84248.0,98.5343984]
[1743177686488,6.76072321,84249.0,84248.0,98.5343984]
[1743177686691,6.64028321,84249.0,84248.0,98.5343984]
[1743177686871,6.76697582,84249.0,84248.0,98.5343984]
[1743177687112,6.62165582,84249.0,84248.0,98.5343984]
[1743177687312,6.61729582,84249.0,84248.0,98.5343984]
[1743177687512,1.61729582,84249.0,84248.0,98.5343984]
[1743177687680,6.61729582,84249.0,84248.0,98.5343984]
[1743177688305,6.61729582,84249.0,84248.0,97.93909236]
[1743177690082,6.62229582,84249.0,84248.0,97.93909236]
[1743177690211,6.49871582,84249.0,84248.0,97.93909236]
[1743177693963,6.02471582,84249.0,84248.0,97.93909236]
[1743177694621,6.01971582,84249.0,84248.0,97.93909236]
[1743177694781,6.04334318,84249.0,84248.0,97.93909236]
[1743177694979,6.01971582,84249.0,84248.0,97.93909236]
[1743177695185,6.02471582,84249.0,84248.0,97.93909236]
[1743177697464,6.80271582,84249.0,84248.0,97.93909236]
[1743177698047,6.82134315,84249.0,84248.0,97.93909236]
[1743177698450,1.97562315,84249.0,84248.0,97.93909236]
[1743177698647,6.97562315,84249.0,84248.0,97.93909236]
[1743177699172,6.97562315,84249.0,84248.0,97.70838352]
[1743177699373,6.990164,84249.0,84248.0,97.70838352]
[1743177699602,7.00180796,84249.0,84248.0,97.70838352]
[1743177699734,7.03581072,84249.0,84248.0,97.70838352]
[1743177699938,7.04081072,84249.0,84248.0,97.70838352]
[1743177700195,7.03081072,84249.0,84248.0,97.70838352]
[1743177700564,7.03581072,84249.0,84248.0,97.70838352]
[1743177700935,6.94855582,84249.0,84248.0,97.70838352]
[1743177701136,6.43174282,84249.0,84248.0,97.70838352]
[1743177701361,6.27402782,84249.0,84248.0,97.70838352]
[1743177701682,6.27902782,84249.0,84248.0,97.70838352]
[1743177702238,6.2179728,84249.0,84248.0,97.70838352]
[1743177703407,6.2180528,84249.0,84248.0,97.70838352]
[1743177703607,6.23668152,84249.0,84248.0,97.70838352]
[1743177703806,6.20618152,84249.0,84248.0,97.70838352]
[1743177704411,6.11643024,84249.0,84248.0,97.70838352]
[1743177704625,6.11143024,84249.0,84248.0,97.70838352]
[1743177704966,2.78612324,84249.0,84248.0,97.79078352]
[1743177705164,2.78612324,84249.0,84248.0,97.70838352]
[1743177705368,2.72831452,84249.0,84248.0,97.70838352]
[1743177705570,2.72331452,84249.0,84248.0,97.70838352]
[1743177705970,3.03331452,84249.0,84248.0,97.70838352]
[1743177706165,2.72831452,84249.0,84248.0,97.70838352]
[1743177706381,3.02331452,84249.0,84248.0,97.70838352]
[1743177706584,2.88567452,84249.0,84248.0,97.70838352]
[1743177706784,3.02823452,84249.0,84248.0,97.70838352]
[1743177706984,2.88067452,84249.0,84248.0,97.70838352]
[1743177707284,3.02315452,84249.0,84248.0,97.70838352]
[1743177707425,3.02815452,84249.0,84248.0,97.78508352]
[1743177708076,3.0095258,84249.0,84248.0,97.78508352]
[1743177708485,6.7080808,84249.0,84248.0,97.78508352]
[1743177709059,1.7078408,84249.0,84248.0,97.78508352]
[1743177709566,6.7078408,84249.0,84248.0,97.78508352]
[1743177709995,6.5606008,84249.0,84248.0,97.78508352]
[1743177710189,2.6972598,84249.0,84248.0,97.78508352]
[1743177710568,2.7193398,84249.0,84248.0,97.55439776]
[1743177710949,2.7143398,84249.0,84248.0,97.55439776]
[1743177711155,2.5672598,84249.0,84248.0,97.55439776]
[1743177711453,2.3973832,84249.0,84248.0,97.60249776]
[1743177711655,2.3979032,84249.0,84248.0,97.60249776]
[1743177712156,2.3977832,84249.0,84248.0,97.60249776]
[1743177712338,1.7140802,84249.0,84248.0,97.60249776]
[1743177712542,1.7090802,84249.0,84248.0,97.60249776]
[1743177712738,1.6832462,84249.0,84248.0,97.60249776]
[1743177713076,1.5361242,84249.0,84248.0,97.60249776]
[1743177713272,1.4126242,84249.0,84248.0,97.00717962]
[1743177713508,0.8895242,84249.0,84248.0,97.00717962]
[1743177713886,1.0370042,84249.0,84248.0,97.00717962]
[1743177714123,1.0183778,84249.0,84248.0,97.00717962]
[1743177714333,0.4527378,84249.0,84248.0,97.00717962]
[1743177714539,0.4577378,84249.0,84248.0,97.00717962]
[1743177714949,0.4477378,84249.0,84248.0,97.00717962]
[1743177715150,0.4577378,84249.0,84248.0,97.00717962]
[1743177716322,0.44669467,84249.0,84248.0,97.00717962]
[1743177716682,0.44649467,84249.0,84248.0,97.00717962]
[1743177717124,0.29929467,84249.0,84248.0,97.02172047]
[1743177717325,0.01,84249.0,84248.0,97.02172047]
[1743177717558,0.1572,84249.0,84248.0,97.02172047]
[1743177718076,0.1472,84249.0,84248.0,97.02172047]
[1743177718254,0.1572,84249.0,84248.0,97.02172047]
[1743177718607,0.1522,84249.0,84248.0,97.02172047]
[1743177718819,0.1852,84260.0,84249.0,0.00954085]
[1743177719017,1.3721718,84260.0,84250.0,0.0457]
[1743177719398,1.3221718,84260.0,84252.0,0.1215]
[1743177719616,1.1869718,84260.0,84253.0,0.00237318]
[1743177719826,1.1869718,84260.0,84254.0,0.0829]
[1743177720029,0.14704,84259.0,84255.0,0.04647318]
[1743177720237,1.1869718,84260.0,84256.0,0.0829]
[1743177720678,2.36794968,84260.0,84256.0,0.0829]
[1743177720859,2.37294968,84260.0,84256.0,0.0829]
[1743177721297,2.36794968,84260.0,84256.0,0.0829]
[1743177721508,0.14712,84259.0,84256.0,0.0829]
[1743177721711,1.180788,84259.0,84256.0,0.0829]
[1743177721915,0.617879,84258.0,84256.0,0.0829]
[1743177722124,0.429839,84257.0,84256.0,0.0829]
[1743177722335,0.14704,84258.0,84249.0,0.0023735]
[1743177722544,0.14704,84258.0,84257.0,0.09104085]
[1743177723089,0.16566083,84258.0,84257.0,0.13864085]
[1743177723298,0.01862083,84258.0,84257.0,0.13864085]
[1743177723511,0.14696,84258.0,84257.0,0.02840494]
[1743177723709,0.15196,84258.0,84257.0,0.14054085]
[1743177724111,0.0003378,84265.0,84259.0,0.01454085]
[1743177724314,1.1873096,84265.0,84261.0,0.0795]
[1743177724523,1.1873096,84265.0,84263.0,0.0783]
[1743177724748,1.1873096,84265.0,84264.0,0.0783]
[1743177725542,1.3342696,84265.0,84264.0,0.0733]
[1743177726348,1.3342696,84265.0,84264.0,0.1214]
[1743177726557,1.3352696,84265.0,84264.0,0.1214]
[1743177726760,1.3402696,84265.0,84264.0,0.13594085]
[1743177727345,1.1933096,84265.0,84264.0,0.13594085]
[1743177727551,1.3400296,84265.0,84264.0,0.13594085]
[1743177727736,1.3390296,84265.0,84264.0,0.13594085]
[1743177728158,1.3390296,84265.0,84264.0,0.1214]
[1743177728341,1.3340296,84265.0,84264.0,0.1214]
[1743177729735,1.3340296,84265.0,84264.0,0.12090075]
[1743177732567,1.3337096,84265.0,84264.0,0.12090075]
[1743177734095,1.3337096,84265.0,84264.0,0.07280075]
[1743177734298,1.5984516,84265.0,84256.0,0.0802]
[1743177734624,0.241867,84264.0,84256.0,0.0802]
[1743177734998,0.241867,84264.0,84253.0,0.0001689]
[1743177735406,0.025,84262.0,84253.0,0.0001689]
[1743177735729,0.1,84258.0,84253.0,0.0001689]
[1743177735970,0.833563,84257.0,84253.0,0.0001689]
[1743177736195,0.4602,84254.0,84253.0,0.0001689]
[1743177736339,3.8086658,84254.0,84253.0,0.0001689]
[1743177736546,3.5482068,84254.0,84253.0,0.0001689]
[1743177736922,2.8410468,84254.0,84253.0,0.0001689]
[1743177737125,1.4933318,84254.0,84253.0,0.0001689]
[1743177737336,1.4933318,84254.0,84253.0,0.56100975]
[1743177737545,1.3332118,84254.0,84253.0,0.68620975]
[1743177738001,1.3331718,84254.0,84253.0,0.68620975]
[1743177738812,1.3381718,84254.0,84253.0,0.68620975]
[1743177739013,1.3381718,84254.0,84253.0,0.56100975]
[1743177739213,1.3331718,84254.0,84253.0,0.56100975]
[1743177739547,1.3381718,84254.0,84253.0,0.56100975]
[1743177739757,1.1969718,84254.0,84253.0,0.55981975]
[1743177739955,1.3428918,84254.0,84253.0,0.55148975]
[1743177740156,1.3378918,84254.0,84253.0,0.55148975]
[1743177740355,1.3378118,84254.0,84253.0,0.55148975]
[1743177740528,1.3428118,84254.0,84253.0,0.55148975]
[1743177742011,1.1969718,84254.0,84253.0,0.55148975]
[1743177742248,1.3427318,84254.0,84253.0,0.55148975]
[1743177743373,1.4542018,84254.0,84253.0,0.4075489]
[1743177743767,1.36135317,84254.0,84253.0,0.4075489]
[1743177743962,1.36135317,84254.0,84253.0,0.42208975]
[1743177743963,1.21559317,84254.0,84253.0,0.42208975]
[1743177744304,1.3376518,84254.0,84253.0,0.42208975]
[1743177744449,1.1919718,84254.0,84253.0,0.42208975]
[1743177744651,1.3425718,84254.0,84253.0,0.50215865]
[1743177745194,1.3375718,84254.0,84253.0,0.50215865]
[1743177745392,1.3425718,84254.0,84253.0,0.50215865]
[1743177745594,1.3375718,84254.0,84253.0,0.50215865]
[1743177746355,1.3425718,84254.0,84253.0,0.50215865]
[1743177748685,1.3421318,84254.0,84253.0,0.50215865]
[1743177749116,1.3421318,84254.0,84253.0,0.21980975]
[1743177750679,1.3421318,84254.0,84253.0,0.2052689]
[1743177751089,1.3421318,84254.0,84253.0,0.0001689]
[1743177754163,1.3419318,84254.0,84253.0,0.0001689]
[1743177755162,1.1969718,84254.0,84253.0,0.0001689]
[1743177755377,1.6774648,84254.0,84253.0,0.0001689]
[1743177756176,1.2326648,84254.0,84253.0,0.0001689]
[1743177756384,1.2326648,84254.0,84253.0,0.09630975]
[1743177756498,1.3418518,84254.0,84253.0,0.14490975]
[1743177756706,1.3418518,84254.0,84253.0,0.01470975]
[1743177757649,1.3421896,84254.0,84253.0,0.01470975]
[1743177758297,1.3419896,84254.0,84253.0,0.0001689]
[1743177758410,2.0921916,84254.0,84253.0,0.0001689]
[1743177758770,1.9623466,84254.0,84253.0,0.0001689]
[1743177759595,2.0390466,84254.0,84253.0,0.0001689]
[1743177760011,2.0340466,84254.0,84253.0,0.0001689]
[1743177760420,0.473,84249.0,84248.0,96.74862222]
[1743177760622,7.28817788,84249.0,84248.0,96.74862222]
[1743177762485,3.33263488,84249.0,84248.0,96.74862222]
[1743177762905,3.18795488,84249.0,84248.0,96.74862222]
[1743177763105,3.33255488,84249.0,84248.0,96.74862222]
[1743177763302,3.32755488,84249.0,84248.0,96.74862222]
[1743177763743,3.35118118,84249.0,84248.0,96.74862222]
[1743177763893,3.20658118,84249.0,84248.0,96.74862222]
[1743177764094,2.00844418,84249.0,84248.0,96.74862222]
[1743177764299,2.95867418,84249.0,84248.0,96.74862222]
[1743177764538,2.94004788,84249.0,84248.0,96.74862222]
[1743177764744,2.53957388,84249.0,84248.0,96.74862222]
[1743177765077,1.95206088,84249.0,84248.0,96.74862222]
[1743177765293,1.95198088,84249.0,84248.0,96.74862222]
[1743177766515,4.56817188,84249.0,84248.0,96.74862222]
[1743177766794,3.53410788,84249.0,84248.0,96.74862222]
[1743177766991,2.17918188,84249.0,84248.0,96.74862222]
[1743177767167,2.20418188,84249.0,84248.0,96.74862222]
[1743177768355,2.05978188,84249.0,84248.0,96.74862222]
[1743177768554,0.1702,84249.0,84248.0,96.76316307]
[1743177768762,0.15432,84249.0,84248.0,96.76316307]
[1743177769417,0.14932,84249.0,84248.0,96.76316307]
[1743177769792,0.15432,84249.0,84248.0,96.76316307]
[1743177770197,0.01,84249.0,84248.0,96.76316307]
[1743177770397,0.1542,84249.0,84248.0,96.74862222]
[1743177770602,0.1492,84249.0,84248.0,96.74862222]
[1743177771064,0.1495378,84249.0,84248.0,96.74862222]
[1743177771405,0.1445378,84249.0,84248.0,96.74862222]
[1743177771630,0.1495378,84249.0,84248.0,96.74862222]
[1743177771970,0.1493778,84249.0,84248.0,96.80846307]
[1743177772106,0.1543778,84249.0,84248.0,96.80846307]
[1743177772665,0.1493778,84249.0,84248.0,96.80846307]
[1743177772867,0.1543778,84249.0,84248.0,96.80846307]
[1743177773645,0.1541778,84249.0,84248.0,96.80846307]
[1743177774249,0.1541778,84249.0,84248.0,96.76316307]
[1743177776884,0.0103378,84249.0,84248.0,96.76316307]
[1743177777085,0.1538978,84249.0,84248.0,96.76316307]
[1743177778532,0.4537778,84249.0,84248.0,96.74862222]
[1743177778715,0.4537778,84249.0,84248.0,96.76316307]
[1743177778716,0.4787778,84249.0,84248.0,96.76316307]
[1743177778871,0.4787778,84249.0,84248.0,96.74862222]
[1743177779788,0.5144748,84249.0,84248.0,96.74862222]
[1743177781698,0.3460348,84249.0,84248.0,96.74862222]
[1743177781903,0.4895548,84249.0,84248.0,96.74862222]
[1743177782360,0.50817795,84249.0,84248.0,96.74862222]
[1743177782506,0.47248095,84249.0,84248.0,96.74862222]
[1743177783492,0.49748095,84249.0,84248.0,96.74862222]
[1743177784048,3.58784883,84249.0,84248.0,96.74862222]
[1743177784248,3.77353683,84249.0,84248.0,96.74862222]
[1743177784427,3.75491368,84249.0,84248.0,96.74862222]
[1743177784797,3.45281168,84249.0,84248.0,96.74862222]
[1743177784933,1.64979568,84249.0,84248.0,96.74862222]
[1743177785339,1.65979568,84249.0,84248.0,96.74862222]
[1743177785560,1.65479568,84249.0,84248.0,96.74862222]
[1743177785790,2.19297968,84249.0,84248.0,96.74862222]
[1743177785939,2.19797968,84249.0,84248.0,96.74862222]
[1743177786725,2.19297968,84249.0,84248.0,96.74862222]
[1743177787096,2.19797968,84249.0,84248.0,96.74862222]
[1743177787261,2.19297968,84249.0,84248.0,96.74862222]
[1743177787460,2.18797968,84249.0,84248.0,96.74862222]
[1743177787723,2.19297968,84249.0,84248.0,96.74862222]
[1743177787947,2.05449968,84249.0,84248.0,96.74862222]
[1743177788156,1.51631568,84249.0,84248.0,96.74862222]
[1743177788356,1.65995568,84249.0,84248.0,96.74862222]
[1743177788654,0.17864,84249.0,84248.0,96.74862222]
[1743177789019,0.15364,84249.0,84248.0,96.74862222]
[1743177789643,0.01,84249.0,84248.0,96.74862222]
[1743177789815,0.17852,84249.0,84248.0,96.74862222]
[1743177790419,0.45352,84249.0,84248.0,96.76316307]
[1743177790623,0.45348,84249.0,84248.0,96.76316307]
[1743177790857,0.31,84249.0,84248.0,96.76316307]
[1743177791180,0.45344,84249.0,84248.0,96.76316307]
[1743177791585,0.45344,84249.0,84248.0,96.74862222]
[1743177791784,0.47844,84249.0,84248.0,96.74862222]
[1743177792746,0.733805,84249.0,84248.0,96.74862222]
[1743177792934,0.609776,84249.0,84248.0,96.74862222]
[1743177793331,0.46844,84249.0,84248.0,96.74862222]
[1743177793819,0.47344,84249.0,84248.0,96.74862222]
[1743177794000,0.592494,84249.0,84248.0,96.74862222]
[1743177794226,0.60611809,84249.0,84248.0,96.74862222]
[1743177794442,0.61111809,84249.0,84248.0,96.74862222]
[1743177794575,0.61611809,84249.0,84248.0,96.74862222]
[1743177794772,0.61111809,84249.0,84248.0,96.74862222]
[1743177794972,0.61611809,84249.0,84248.0,96.74862222]
[1743177795445,0.61645589,84249.0,84248.0,96.74862222]
[1743177795631,0.47301589,84249.0,84248.0,96.74862222]
[1743177795946,0.5976718,84249.0,84248.0,96.74862222]
[1743177796062,0.3353378,84249.0,84248.0,96.74862222]
[1743177796281,0.4786178,84249.0,84248.0,96.74862222]
[1743177796681,0.3353378,84249.0,84248.0,96.82712222]
[1743177796903,0.4786578,84249.0,84248.0,96.82712222]
[1743177797105,0.4536578,84249.0,84248.0,96.82712222]
[1743177797308,0.4786578,84249.0,84248.0,96.82712222]
[1743177797505,0.4786578,84249.0,84248.0,96.74862222]
[1743177797910,2.3118378,84249.0,84248.0,96.74862222]
[1743177798110,1.1134748,84249.0,84248.0,96.74862222]
[1743177798780,0.8792968,84249.0,84248.0,96.74862222]
[1743177798972,0.7437148,84249.0,84248.0,96.74862222]
[1743177801279,0.3353378,84249.0,84248.0,96.74862222]
[1743177801478,0.4781378,84249.0,84248.0,96.74862222]
[1743177802288,0.3353378,84249.0,84248.0,96.74862222]
[1743177802496,0.44406898,84249.0,84248.0,96.76316307]
[1743177802697,0.0103378,84249.0,84248.0,96.84416307]
[1743177803027,0.0103378,84249.0,84248.0,96.89006307]
[1743177803199,0.1535778,84249.0,84248.0,97.01526307]
[1743177803405,0.1535778,84249.0,84248.0,96.89006307]
[1743177803609,0.1485778,84249.0,84248.0,96.89006307]
[1743177804011,0.1486978,84249.0,84248.0,96.89506307]
[1743177804223,0.1486978,84249.0,84248.0,97.00932071]
[1743177804380,0.1536978,84249.0,84248.0,97.00432071]
[1743177804574,0.1536978,84249.0,84248.0,96.89006307]
[1743177804575,0.1436978,84249.0,84248.0,96.89006307]
[1743177805022,0.1486978,84249.0,84248.0,96.89006307]
[1743177806038,0.1536978,84249.0,84248.0,96.89006307]
[1743177808229,0.1486978,84249.0,84248.0,96.89006307]
[1743177808641,0.1536978,84249.0,84248.0,96.89006307]
[1743177808851,0.1486978,84249.0,84248.0,96.89006307]
[1743177809516,0.1536978,84249.0,84248.0,96.89006307]
[1743177810139,0.1532578,84249.0,84248.0,97.00432071]
[1743177810329,0.1532578,84249.0,84248.0,96.89006307]
[1743177810891,0.0103378,84249.0,84248.0,96.89006307]
[1743177811091,0.1532178,84249.0,84248.0,96.89006307]
[1743177812229,0.0103378,84249.0,84248.0,97.00432071]
[1743177812427,0.1530978,84249.0,84248.0,97.00432071]
[1743177812766,0.1530978,84249.0,84248.0,96.89006307]
[1743177813369,0.0103378,84249.0,84248.0,96.89006307]
[1743177813575,0.0003378,84254.0,84253.0,0.09684085]
[1743177813794,1.3299896,84254.0,84253.0,0.09684085]
[1743177813996,1.3299896,84254.0,84253.0,0.21704085]
[1743177814292,1.3299896,84254.0,84253.0,0.74939849]
[1743177814815,1.3298696,84254.0,84253.0,0.61919849]
[1743177815191,1.3348696,84254.0,84253.0,0.61919849]
[1743177816212,1.3408696,84254.0,84253.0,0.61919849]
[1743177816485,0.01862016,84262.0,84261.0,0.005]
[1743177816661,0.16118016,84262.0,84261.0,0.1505139]
[1743177816811,0.16118016,84262.0,84261.0,0.20279115]
[1743177817541,0.16118016,84262.0,84261.0,0.19679115]
[1743177817751,0.16118016,84262.0,84261.0,0.43624879]
[1743177817953,0.14656,84262.0,84261.0,0.43624879]
[1743177818529,0.004,84262.0,84261.0,0.43624879]
[1743177818765,0.0003378,84264.0,84263.0,0.2003]
[1743177819083,0.0003378,84264.0,84263.0,0.44715155]
[1743177819287,0.0003376,84278.0,84263.0,0.50006653]
[1743177819436,0.0003376,84278.0,84264.0,0.39479758]
[1743177819641,0.0003376,84278.0,84264.0,0.70933843]
[1743177820293,0.0003376,84278.0,84264.0,0.68069849]
[1743177820525,0.0003376,84278.0,84264.0,0.79495613]
[1743177820741,0.1426178,84265.0,84264.0,0.79495613]
[1743177820893,0.0003376,84278.0,84265.0,0.56584085]
[1743177821089,0.14264158,84266.0,84265.0,0.68009849]
[1743177821288,0.0003376,84278.0,84267.0,0.01454085]
[1743177821512,0.0003376,84278.0,84271.0,0.01454085]
[1743177821713,0.0003376,84278.0,84273.0,0.01454085]
[1743177822039,0.0003376,84278.0,84275.0,0.01454085]
[1743177822239,0.0003376,84278.0,84277.0,0.01454085]
[1743177822440,0.1424576,84278.0,84277.0,0.01454085]
[1743177823260,0.1424576,84278.0,84277.0,0.0355607]
[1743177823468,0.1424576,84278.0,84277.0,0.23051834]
[1743177823673,0.1422976,84278.0,84277.0,0.27951834]
[1743177824265,0.1422176,84278.0,84277.0,0.27951834]
[1743177824664,0.0003376,84278.0,84277.0,0.27951834]
[1743177824869,0.1421776,84278.0,84277.0,0.27951834]
[1743177825233,0.0003376,84278.0,84277.0,0.27951834]
[1743177825592,0.0003376,84278.0,84277.0,0.40471834]
[1743177825593,0.1420976,84278.0,84277.0,0.40471834]
[1743177825774,1.1869718,84288.0,84278.0,0.21834085]
[1743177825977,1.1869718,84288.0,84285.0,0.01454085]
[1743177826270,1.1869718,84288.0,84287.0,0.09154085]
[1743177827144,1.3286518,84288.0,84287.0,0.09154085]
[1743177828115,1.3285718,84288.0,84287.0,0.09154085]
[1743177829576,1.1869718,84288.0,84287.0,0.20579849]
[1743177829751,1.3284518,84288.0,84287.0,0.26602078]
[1743177829960,1.3286206,84288.0,84287.0,0.26602078]
[1743177830140,1.3286206,84288.0,84287.0,0.20579849]
[1743177831572,0.1416488,84288.0,84287.0,0.20579849]
[1743177832011,0.10557681,84290.0,84289.0,0.01454085]
[1743177832210,0.10557681,84290.0,84289.0,0.07474626]
[1743177832814,0.10557681,84290.0,84289.0,0.01454085]
[1743177833518,0.24709681,84290.0,84289.0,0.01454085]
[1743177834741,0.10557681,84290.0,84289.0,0.01454085]
[1743177834886,0.24685681,84290.0,84289.0,0.01454085]
[1743177835727,0.14128,84290.0,84289.0,0.01454085]
[1743177836482,0.14128,84290.0,84288.0,0.3962556]